[Event "FIDE World Senior-50 CC 2023"]
[Site "Terrasini"]
[Date "2023.11.04"]
[Round "10.7"]
[White "Bischoff, Klaus"]
[Black "Cummings, David H."]
[Result "1/2-1/2"]
[ECO "D45"]
[WhiteElo "2473"]
[BlackElo "2325"]
[Annotator "ChessBase"]
[PlyCount "53"]
[EventDate "2023.10.22"]
[EventType "swiss"]
[EventCountry "ITA"]
[SourceTitle "playchess.com"]
[Source "ChessBase"]
[SourceQuality "1"]
[TimeControl "40/5400+30:1800+30"]

1. c4 {[%emt 0:00:18]} Nf6 {[%emt 0:00:15]} 2. Nf3 {[%emt 0:00:26]} e6 {[%emt 0:00:26]} 3. Nc3 {[%emt 0:00:23]} d5 {[%emt 0:00:22]} 4. d4 {[%emt 0:00:10]} c6 {[%emt 0:00:37]} 5. e3 {[%emt 0:00:45]} Nbd7 {[%emt 0:00:31]} 6. Qc2 {[%emt 0:00:34]} Bd6 {[%emt 0:00:28]} 7. Bd2 {[%emt 0:02:10]} O-O {[%emt 0:00:53]} 8. h3 {[%emt 0:02:44]} b6 {[%emt 0:02:05]} 9. g4 {[%emt 0:09:24]} dxc4 {[%emt 0:03:14]} 10. g5 {[%emt 0:23:24]} Nd5 {[%emt 0:06:09]} 11. Bxc4 {[%emt 0:00:39]} Bb7 {[%emt 0:28:07]} 12. Ne4 {[%emt 0:07:43]} Bb4 {[%emt 0:07:57]} 13. Bxd5 {[%emt 0:09:47]} Bxd2+ {[%emt 0:00:25]} 14. Qxd2 {[%emt 0:00:23]} cxd5 {[%emt 0:05:08]} 15. Ng3 {[%emt 0:08:21]} Rc8 {[%emt 0:04:27]} 16. O-O {[%emt 0:05:37]} f6 {[%emt 0:05:49]} 17. h4 {[%emt 0:01:42]} e5 {[%emt 0:02:02]} 18. gxf6 {[%emt 0:03:53]} Qxf6 {[%emt 0:01:06]} 19. Nxe5 {[%emt 0:00:08]} Nxe5 {[%emt 0:00:24]} 20. dxe5 {[%emt 0:00:05]} Qxe5 {[%emt 0:01:30]} 21. Rac1 {[%emt 0:00:34]} Qf6 {[%emt 0:04:59]} 22. Rxc8 {[%emt 0:00:19]} Rxc8 {[%emt 0:00:09]} 23. Rc1 {[%emt 0:00:52]} Rc5 {[%emt 0:05:06]} 24. Rxc5 {[%emt 0:01:12]} bxc5 {[%emt 0:00:05]} 25. Qa5 {[%emt 0:00:27]} Qb6 {[%emt 0:05:38]} 26. Qa4 {[%emt 0:01:10]} h6 {[%emt 0:02:57]} 27. Qd7 {[%emt 0:09:26]} 1/2-1/2

[Event "FIDE World Senior-50 CC 2023"]
[Site "Terrasini"]
[Date "2023.11.04"]
[Round "10.8"]
[White "Paschall, William"]
[Black "Mohr, Georg"]
[Result "1-0"]
[ECO "E62"]
[WhiteElo "2329"]
[BlackElo "2430"]
[Annotator "ChessBase"]
[PlyCount "71"]
[EventDate "2023.10.22"]
[EventType "swiss"]
[EventCountry "ITA"]
[SourceTitle "playchess.com"]
[Source "ChessBase"]
[SourceQuality "1"]
[TimeControl "40/5400+30:1800+30"]

1. Nf3 {[%emt 0:00:25]} d6 {[%emt 0:01:22]} 2. d4 {[%emt 0:01:57]} Nf6 {[%emt 0:00:32]} 3. c4 {[%emt 0:01:32]} g6 {[%emt 0:01:24]} 4. Nc3 {[%emt 0:01:43]} Bf5 {[%emt 0:01:48]} 5. g3 {[%emt 0:05:39]} Bg7 {[%emt 0:00:05]} 6. Bg2 {[%emt 0:00:28]} O-O {[%emt 0:01:20]} 7. O-O {[%emt 0:02:11]} Nc6 {[%emt 0:07:03]} 8. Ng5 {[%emt 0:06:41]} h6 {[%emt 0:07:30]} 9. e4 {[%emt 0:02:02]} Bg4 {[%emt 0:02:51]} 10. f3 {[%emt 0:01:30]} Bd7 {[%emt 0:05:14]} 11. Nh3 {[%emt 0:03:24]} e5 {[%emt 0:01:17]} 12. d5 {[%emt 0:00:30]} Nd4 {[%emt 0:00:22]} 13. Be3 {[%emt 0:03:19]} c5 {[%emt 0:05:50]} 14. dxc6 {[%emt 1:06:09]} bxc6 {[%emt 0:02:51]} 15. c5 {[%emt 0:00:00]} dxc5 {[%emt 0:03:30]} 16. Na4 {[%emt 0:00:00]} Qe7 {[%emt 0:06:30]} 17. Rc1 {[%emt 0:00:00]} c4 {[%emt 0:07:18]} 18. Re1 {[%emt 0:00:00]} c5 {[%emt 0:06:59]} 19. Bxd4 {[%emt 0:00:00]} cxd4 {[%emt 0:04:58]} 20. Rxc4 {[%emt 0:00:00]} Be6 {[%emt 0:01:40]} 21. Rc1 {[%emt 0:00:00]} Bxa2 {[%emt 0:00:18]} 22. Bf1 {[%emt 0:00:00]} Rab8 {[%emt 0:01:27]} 23. Qd2 {[%emt 0:00:00]} Be6 {[%emt 0:10:52]} 24. Nf2 {[%emt 0:00:00]} Nd7 {[%emt 0:04:14]} 25. Rc7 {[%emt 0:00:00]} Qd6 {[%emt 0:07:02]} 26. Rxa7 {[%emt 0:01:32]} Ra8 {[%emt 0:01:09]} 27. Qa5 {[%emt 0:02:51]} Qc6 {[%emt 0:02:49]} 28. Ra6 {[%emt 0:00:12]} Rfb8 {[%emt 0:00:52]} 29. b4 {[%emt 0:00:54]} Rxa6 {[%emt 0:01:21]} 30. Bxa6 {[%emt 0:00:14]} Bb3 {[%emt 0:01:16]} 31. Nb2 {[%emt 0:01:20]} Bf8 {[%emt 0:01:36]} 32. Nbd3 {[%emt 0:00:33]} Bc4 {[%emt 0:01:00]} 33. Bxc4 {[%emt 0:00:17]} Qxc4 {[%emt 0:00:01]} 34. Rc1 {[%emt 0:01:02]} Bxb4 {[%emt 0:02:10]} 35. Qa4 {[%emt 0:00:09]} Nc5 {[%emt 0:00:47]} 36. Rxc4 {[%emt 0:00:09]} 1-0

[Event "FIDE World Senior-50 CC 2023"]
[Site "Terrasini"]
[Date "2023.11.04"]
[Round "10.9"]
[White "Cabe, Arlan"]
[Black "Matamoros Franco, Carlos S."]
[Result "1/2-1/2"]
[ECO "A49"]
[WhiteElo "2303"]
[BlackElo "2455"]
[Annotator "ChessBase"]
[PlyCount "92"]
[EventDate "2023.10.22"]
[EventType "swiss"]
[EventCountry "ITA"]
[SourceTitle "playchess.com"]
[Source "ChessBase"]
[SourceQuality "1"]
[TimeControl "40/5400+30:1800+30"]

1. d4 {[%emt 0:00:18]} Nf6 {[%emt 0:00:25]} 2. Nf3 {[%emt 0:00:05]} c5 {[%emt 0:00:18]} 3. c3 {[%emt 0:00:16]} Qc7 {[%emt 0:00:43]} 4. g3 {[%emt 0:00:14]} g6 {[%emt 0:00:18]} 5. Bg2 {[%emt 0:00:18]} Bg7 {[%emt 0:00:04]} 6. O-O {[%emt 0:00:10]} O-O {[%emt 0:00:09]} 7. Re1 {[%emt 0:01:41]} d6 {[%emt 0:11:03]} 8. a4 {[%emt 0:05:11]} Bf5 {[%emt 0:10:59]} 9. Nbd2 {[%emt 0:06:20]} cxd4 {[%emt 0:01:18]} 10. Nxd4 {[%emt 0:00:08]} Bd7 {[%emt 0:00:05]} 11. Nb5 {[%emt 0:04:15]} Qc8 {[%emt 0:00:21]} 12. Nb3 {[%emt 0:02:12]} Nc6 {[%emt 0:00:35]} 13. Be3 {[%emt 0:02:12]} a6 {[%emt 0:03:44]} 14. Na3 {[%emt 0:07:24]} Ne5 {[%emt 0:01:44]} 15. Na5 {[%emt 0:04:28]} Qc7 {[%emt 0:03:56]} 16. b4 {[%emt 0:00:45]} b6 {[%emt 0:10:07]} 17. Bxa8 {[%emt 0:04:32]} Rxa8 {[%emt 0:00:03]} 18. Nb3 {[%emt 0:03:21]} Bxa4 {[%emt 0:00:50]} 19. Qb1 {[%emt 0:09:56]} Qc8 {[%emt 0:11:22]} 20. Kg2 {[%emt 0:42:11]} Qxc3 {[%emt 0:07:49]} 21. Nd4 {[%emt 0:00:50]} Neg4 {[%emt 0:13:00]} 22. Qd3 {[%emt 0:00:22]} Nxe3+ {[%emt 0:04:17]} 23. fxe3 {[%emt 0:00:16]} Qxb4 {[%emt 0:09:34]} 24. Nc4 {[%emt 0:00:33]} Ng4 {[%emt 0:02:04]} 25. Nxb6 {[%emt 0:01:22]} Qxb6 {[%emt 0:06:13]} 26. Rxa4 {[%emt 0:00:16]} Qb7+ {[%emt 0:00:01]} 27. Nf3 {[%emt 0:00:50]} Ne5 {[%emt 0:00:08]} 28. Qe4 {[%emt 0:00:42]} Qxe4 {[%emt 0:00:17]} 29. Rxe4 {[%emt 0:00:02]} a5 {[%emt 0:00:33]} 30. Ra4 {[%emt 0:01:13]} Nd7 {[%emt 0:00:07]} 31. Rb1 {[%emt 0:00:45]} Nc5 {[%emt 0:00:09]} 32. Ra3 {[%emt 0:00:11]} f5 {[%emt 0:02:08]} 33. Rb5 {[%emt 0:01:04]} a4 {[%emt 0:00:10]} 34. Ne1 {[%emt 0:00:18]} Rc8 {[%emt 0:00:56]} 35. Ra2 {[%emt 0:00:55]} h5 {[%emt 0:00:52]} 36. h4 {[%emt 0:00:16]} Ne4 {[%emt 0:00:39]} 37. Rb7 {[%emt 0:00:07]} Bf6 {[%emt 0:00:49]} 38. Ra7 {[%emt 0:00:42]} Nc3 {[%emt 0:00:43]} 39. Rc2 {[%emt 0:00:09]} Rb8 {[%emt 0:00:08]} 40. Nd3 {[%emt 0:00:36]} Rb3 {[%emt 0:00:30]} 41. Kf3 {[%emt 0:32:38]} a3 {[%emt 0:04:58]} 42. Ra5 {[%emt 0:00:00]} Kf7 {[%emt 0:00:52]} 43. Ra7 {[%emt 0:00:00]} Nb5 {[%emt 0:20:46]} 44. Ra5 {[%emt 0:00:00]} Nc3 {[%emt 0:00:08]} 45. Ra7 {[%emt 0:00:00]} Nb5 {[%emt 0:02:27]} 46. Ra5 {[%emt 0:00:00]} Nc3 {[%emt 0:05:08]} 1/2-1/2

[Event "FIDE World Senior-50 CC 2023"]
[Site "Terrasini"]
[Date "2023.11.04"]
[Round "10.10"]
[White "Stets, Vasyl"]
[Black "Holzke, Frank"]
[Result "0-1"]
[ECO "A46"]
[WhiteElo "2169"]
[BlackElo "2473"]
[Annotator "ChessBase"]
[PlyCount "128"]
[EventDate "2023.10.22"]
[EventType "swiss"]
[EventCountry "ITA"]
[SourceTitle "playchess.com"]
[Source "ChessBase"]
[SourceQuality "1"]
[TimeControl "40/5400+30:1800+30"]

1. d4 {[%emt 0:00:05]} Nf6 {[%emt 0:00:14]} 2. Bf4 {[%emt 0:00:11]} d6 {[%emt 0:00:20]} 3. e3 {[%emt 0:00:31]} Nbd7 {[%emt 0:00:27]} 4. Nf3 {[%emt 0:00:09]} Nh5 {[%emt 0:02:18]} 5. Bg5 {[%emt 0:00:30]} h6 {[%emt 0:00:36]} 6. Bh4 {[%emt 0:00:02]} g5 {[%emt 0:00:17]} 7. Nfd2 {[%emt 0:00:37]} Ndf6 {[%emt 0:01:39]} 8. Be2 {[%emt 0:03:19]} Nf4 {[%emt 0:02:15]} 9. exf4 {[%emt 0:01:28]} gxh4 {[%emt 0:00:09]} 10. Nc3 {[%emt 0:00:53]} Rg8 {[%emt 0:04:59]} 11. g3 {[%emt 0:01:40]} Bf5 {[%emt 0:04:21]} 12. Nf3 {[%emt 0:00:45]} hxg3 {[%emt 0:03:28]} 13. hxg3 {[%emt 0:00:20]} c6 {[%emt 0:01:35]} 14. Qd2 {[%emt 0:03:02]} Qa5 {[%emt 0:03:13]} 15. Nh4 {[%emt 0:20:15]} Bd7 {[%emt 0:04:41]} 16. Nf3 {[%emt 1:04:43]} e6 {[%emt 0:04:03]} 17. Ne4 {[%emt 0:00:00]} Qxd2+ {[%emt 0:00:19]} 18. Nfxd2 {[%emt 0:00:00]} Ke7 {[%emt 0:01:10]} 19. Nxf6 {[%emt 0:00:00]} Kxf6 {[%emt 0:00:12]} 20. O-O-O {[%emt 0:00:00]} Rc8 {[%emt 0:10:13]} 21. Kb1 {[%emt 0:00:00]} Bg7 {[%emt 0:04:54]} 22. Nc4 {[%emt 0:00:00]} Ke7 {[%emt 0:00:37]} 23. Ne3 {[%emt 0:00:00]} b5 {[%emt 0:04:42]} 24. Ng4 {[%emt 0:00:00]} f5 {[%emt 0:00:47]} 25. Ne3 {[%emt 0:00:00]} d5 {[%emt 0:01:31]} 26. Ng2 {[%emt 0:00:00]} a5 {[%emt 0:09:20]} 27. Nh4 {[%emt 0:00:00]} Be8 {[%emt 0:03:05]} 28. Nf3 {[%emt 0:00:00]} b4 {[%emt 0:00:47]} 29. Ne5 {[%emt 0:00:00]} c5 {[%emt 0:00:28]} 30. dxc5 {[%emt 0:00:00]} Rxc5 {[%emt 0:00:15]} 31. Bd3 {[%emt 0:00:00]} a4 {[%emt 0:04:12]} 32. Be2 {[%emt 0:00:00]} a3 {[%emt 0:01:47]} 33. Rd4 {[%emt 0:02:20]} Bb5 {[%emt 0:09:14]} 34. Bxb5 {[%emt 0:02:09]} Rxb5 {[%emt 0:00:31]} 35. b3 {[%emt 0:00:15]} Kd6 {[%emt 0:04:58]} 36. Re1 {[%emt 0:00:39]} Rc8 {[%emt 0:02:39]} 37. Re2 {[%emt 0:00:53]} h5 {[%emt 0:02:52]} 38. Rd1 {[%emt 0:00:09]} Bxe5 {[%emt 0:01:01]} 39. Rxe5 {[%emt 0:01:10]} Rh8 {[%emt 0:01:50]} 40. Rde1 {[%emt 0:01:44]} Rh6 {[%emt 0:00:13]} 41. Kc1 {[%emt 0:30:40]} Rc5 {[%emt 0:33:18]} 42. Kd2 {[%emt 0:01:54]} Rc3 {[%emt 0:03:44]} 43. R5e3 {[%emt 0:00:00]} Rxe3 {[%emt 0:00:00]} 44. fxe3 {[%emt 0:00:00]} e5 {[%emt 0:00:00]} 45. fxe5+ {[%emt 0:00:00]} Kxe5 {[%emt 0:00:00]} 46. Rh1 {[%emt 0:00:00]} Rg6 {[%emt 0:00:00]} 47. Rxh5 {[%emt 0:00:00]} Rxg3 {[%emt 0:00:00]} 48. Rh4 {[%emt 0:00:00]} Rg4 {[%emt 0:00:00]} 49. Rh8 {[%emt 0:00:00]} d4 {[%emt 0:00:00]} 50. Re8+ {[%emt 0:00:00]} Kf6 {[%emt 0:00:00]} 51. Rf8+ {[%emt 0:00:00]} Ke6 {[%emt 0:00:00]} 52. Re8+ {[%emt 0:01:05]} Kf7 {[%emt 0:07:16]} 53. Rc8 {[%emt 0:03:04]} dxe3+ {[%emt 0:00:00]} 54. Kxe3 {[%emt 0:00:01]} Rg1 {[%emt 0:00:00]} 55. Rc4 {[%emt 0:01:05]} Ra1 {[%emt 0:00:00]} 56. Rxb4 {[%emt 0:00:36]} Rxa2 {[%emt 0:00:00]} 57. Ra4 {[%emt 0:00:22]} Ra1 {[%emt 0:00:00]} 58. Ra6 {[%emt 0:01:23]} f4+ {[%emt 0:00:00]} 59. Ke2 {[%emt 0:00:16]} a2 {[%emt 0:00:00]} 60. b4 {[%emt 0:00:56]} f3+ {[%emt 0:00:00]} 61. Kf2 {[%emt 0:01:49]} Ke7 {[%emt 0:00:00]} 62. b5 {[%emt 0:00:00]} Kd7 {[%emt 0:00:00]} 63. Ra3 {[%emt 0:00:16]} Kc7 {[%emt 0:00:00]} 64. Ra6 {[%emt 0:00:37]} Kb7 {[%emt 0:00:00]} 0-1

[Event "FIDE World Senior-50 CC 2023"]
[Site "Terrasini"]
[Date "2023.11.04"]
[Round "10.11"]
[White "Golovchuk, Oleg"]
[Black "Lima, Darcy"]
[Result "1-0"]
[ECO "C41"]
[WhiteElo "2067"]
[BlackElo "2416"]
[Annotator "ChessBase"]
[PlyCount "97"]
[EventDate "2023.10.22"]
[EventType "swiss"]
[EventCountry "ITA"]
[SourceTitle "playchess.com"]
[Source "ChessBase"]
[SourceQuality "1"]
[TimeControl "40/5400+30:1800+30"]

1. e4 {[%emt 0:00:09]} e5 {[%emt 0:00:17]} 2. Nf3 {[%emt 0:00:41]} Nc6 {[%emt 0:00:15]} 3. Nc3 {[%emt 0:00:33]} g6 {[%emt 0:01:23]} 4. d4 {[%emt 0:03:36]} exd4 {[%emt 0:00:17]} 5. Nxd4 {[%emt 0:00:11]} Bg7 {[%emt 0:00:34]} 6. Nxc6 {[%emt 0:00:44]} bxc6 {[%emt 0:00:17]} 7. Bc4 {[%emt 0:00:29]} d6 {[%emt 0:06:27]} 8. O-O {[%emt 0:02:44]} Ne7 {[%emt 0:02:20]} 9. Bg5 {[%emt 0:02:37]} Be6 {[%emt 0:07:13]} 10. Qd3 {[%emt 0:09:34]} h6 {[%emt 0:02:04]} 11. Bh4 {[%emt 0:16:17]} g5 {[%emt 0:16:15]} 12. Bxe6 {[%emt 0:07:54]} fxe6 {[%emt 0:01:04]} 13. Bg3 {[%emt 0:00:31]} Ng6 {[%emt 0:10:57]} 14. e5 {[%emt 0:07:00]} Nxe5 {[%emt 0:00:55]} 15. Bxe5 {[%emt 0:01:26]} Bxe5 {[%emt 0:00:02]} 16. Qg6+ {[%emt 0:00:55]} Kd7 {[%emt 0:06:46]} 17. Rfe1 {[%emt 0:04:44]} Qf6 {[%emt 0:02:06]} 18. Qd3 {[%emt 0:00:32]} Bxc3 {[%emt 0:05:24]} 19. bxc3 {[%emt 0:00:11]} Rab8 {[%emt 0:01:05]} 20. Re2 {[%emt 0:05:22]} Rb5 {[%emt 0:12:01]} 21. Rae1 {[%emt 0:02:13]} Rf8 {[%emt 0:01:49]} 22. f3 {[%emt 0:02:05]} e5 {[%emt 0:00:14]} 23. Re4 {[%emt 0:06:06]} Rfb8 {[%emt 0:04:32]} 24. Kf2 {[%emt 0:04:15]} Rd5 {[%emt 0:01:15]} 25. Qa6 {[%emt 0:02:13]} Rd2+ {[%emt 0:01:59]} 26. R1e2 {[%emt 0:00:28]} Rxe2+ {[%emt 0:00:02]} 27. Rxe2 {[%emt 0:02:02]} Rb1 {[%emt 0:03:44]} 28. Re4 {[%emt 0:07:07]} Rb2 {[%emt 0:05:45]} 29. Qa4 {[%emt 0:01:47]} Qf7 {[%emt 0:00:46]} 30. c4 {[%emt 0:00:54]} Qg8 {[%emt 0:00:30]} 31. a3 {[%emt 0:02:01]} Qb8 {[%emt 0:01:19]} 32. c5 {[%emt 0:01:17]} Qb5 {[%emt 0:00:17]} 33. cxd6 {[%emt 0:03:23]} Qc5+ {[%emt 0:03:28]} 34. Kg3 {[%emt 0:01:24]} Rxc2 {[%emt 0:00:10]} 35. dxc7 {[%emt 0:01:47]} Qf2+ {[%emt 0:01:52]} 36. Kg4 {[%emt 0:00:19]} Qxg2+ {[%emt 0:00:21]} 37. Kf5 {[%emt 0:00:51]} Qxf3+ {[%emt 0:01:34]} 38. Kg6 {[%emt 0:00:09]} Qd3 {[%emt 0:00:03]} 39. Kg7 {[%emt 0:00:49]} Kxc7 {[%emt 0:01:58]} 40. Qxa7+ {[%emt 0:00:42]} Kc8 {[%emt 0:00:02]} 41. Qa8+ {[%emt 0:31:36]} Kd7 {[%emt 0:01:09]} 42. Qb7+ {[%emt 0:00:00]} Ke6 {[%emt 0:03:32]} 43. Qf7+ {[%emt 0:00:00]} Kd6 {[%emt 0:00:04]} 44. Qf6+ {[%emt 0:00:00]} Kc7 {[%emt 0:01:07]} 45. Qxe5+ {[%emt 0:00:00]} Kc8 {[%emt 0:08:10]} 46. Rd4 {[%emt 0:00:00]} Re2 {[%emt 0:06:24]} 47. Qf6 {[%emt 0:00:00]} Re7+ {[%emt 0:04:25]} 48. Kf8 {[%emt 0:00:00]} Qxa3 {[%emt 0:00:13]} 49. Qxe7 {[%emt 0:00:00]} 1-0

[Event "FIDE World Senior-50 CC 2023"]
[Site "Terrasini"]
[Date "2023.11.04"]
[Round "10.12"]
[White "Nadanian, Ashot"]
[Black "Prasad, Devaki V"]
[Result "0-1"]
[ECO "C15"]
[WhiteElo "2279"]
[BlackElo "2200"]
[Annotator "ChessBase"]
[PlyCount "120"]
[EventDate "2023.10.22"]
[EventType "swiss"]
[EventCountry "ITA"]
[SourceTitle "playchess.com"]
[Source "ChessBase"]
[SourceQuality "1"]
[TimeControl "40/5400+30:1800+30"]

1. e4 {[%emt 0:00:16]} e6 {[%emt 0:00:16]} 2. d4 {[%emt 0:00:18]} d5 {[%emt 0:00:09]} 3. Nc3 {[%emt 0:00:44]} Bb4 {[%emt 0:00:13]} 4. Qd3 {[%emt 0:02:22]} dxe4 {[%emt 0:00:55]} 5. Qxe4 {[%emt 0:00:06]} Nf6 {[%emt 0:00:35]} 6. Qh4 {[%emt 0:00:09]} b6 {[%emt 0:01:46]} 7. Nf3 {[%emt 0:02:16]} Bb7 {[%emt 0:00:11]} 8. Bb5+ {[%emt 0:02:20]} Nc6 {[%emt 0:00:50]} 9. O-O {[%emt 0:08:16]} a6 {[%emt 0:28:39]} 10. d5 {[%emt 0:32:27]} Nxd5 {[%emt 0:00:27]} 11. Bxc6+ {[%emt 0:00:32]} Bxc6 {[%emt 0:00:04]} 12. Qc4 {[%emt 0:00:19]} Bc5 {[%emt 0:00:50]} 13. Ne5 {[%emt 0:03:05]} Qd6 {[%emt 0:06:40]} 14. Nxc6 {[%emt 0:17:09]} Qxc6 {[%emt 0:00:14]} 15. Kh1 {[%emt 0:00:15]} b5 {[%emt 0:03:40]} 16. Qe4 {[%emt 0:00:30]} Ne7 {[%emt 0:02:00]} 17. a4 {[%emt 0:01:26]} b4 {[%emt 0:01:33]} 18. Qxc6+ {[%emt 0:00:05]} Nxc6 {[%emt 0:00:03]} 19. Ne4 {[%emt 0:00:05]} Be7 {[%emt 0:00:56]} 20. Be3 {[%emt 0:00:53]} O-O-O {[%emt 0:06:14]} 21. Rfd1 {[%emt 0:01:29]} Rxd1+ {[%emt 0:03:29]} 22. Rxd1 {[%emt 0:00:05]} Rd8 {[%emt 0:00:06]} 23. Rxd8+ {[%emt 0:00:14]} Kxd8 {[%emt 0:00:10]} 24. f3 {[%emt 0:00:17]} f5 {[%emt 0:09:37]} 25. Nd2 {[%emt 0:00:19]} Na5 {[%emt 0:00:55]} 26. b3 {[%emt 0:01:37]} e5 {[%emt 0:01:37]} 27. g4 {[%emt 0:01:43]} g6 {[%emt 0:03:02]} 28. Kg2 {[%emt 0:00:25]} Kd7 {[%emt 0:00:07]} 29. Kf1 {[%emt 0:00:28]} Ke6 {[%emt 0:01:54]} 30. Ke2 {[%emt 0:00:08]} Kd5 {[%emt 0:00:40]} 31. Kd3 {[%emt 0:00:33]} Bc5 {[%emt 0:04:02]} 32. Bh6 {[%emt 0:00:47]} Nb7 {[%emt 0:02:02]} 33. h3 {[%emt 0:03:49]} Nd6 {[%emt 0:01:47]} 34. Ke2 {[%emt 0:00:39]} Nf7 {[%emt 0:04:04]} 35. Bg7 {[%emt 0:00:09]} Ng5 {[%emt 0:00:29]} 36. h4 {[%emt 0:01:06]} Ne6 {[%emt 0:02:44]} 37. Bh6 {[%emt 0:00:06]} Be7 {[%emt 0:07:26]} 38. h5 {[%emt 0:00:54]} Bg5 {[%emt 0:00:25]} 39. Bxg5 {[%emt 0:00:13]} Nxg5 {[%emt 0:00:04]} 40. hxg6 {[%emt 0:02:44]} hxg6 {[%emt 0:00:06]} 41. gxf5 {[%emt 0:30:25]} gxf5 {[%emt 0:30:04]} 42. Nc4 {[%emt 0:00:34]} Ne6 {[%emt 0:00:27]} 43. Ne3+ {[%emt 0:00:24]} Kc5 {[%emt 0:08:01]} 44. Nxf5 {[%emt 0:00:11]} Nd4+ {[%emt 0:02:07]} 45. Nxd4 {[%emt 0:00:06]} Kxd4 {[%emt 0:00:03]} 46. Kd2 {[%emt 0:08:27]} c5 {[%emt 0:00:00]} 47. Ke2 {[%emt 0:00:00]} Kc3 {[%emt 0:00:00]} 48. Kd1 {[%emt 0:00:00]} a5 {[%emt 0:00:00]} 49. Kc1 {[%emt 0:00:00]} c4 {[%emt 0:00:00]} 50. bxc4 {[%emt 0:00:00]} Kxc4 {[%emt 0:00:00]} 51. Kd2 {[%emt 0:00:00]} b3 {[%emt 0:00:00]} 52. cxb3+ {[%emt 0:00:00]} Kxb3 {[%emt 0:00:00]} 53. Kd3 {[%emt 0:00:00]} Kxa4 {[%emt 0:00:00]} 54. Ke4 {[%emt 0:00:00]} Kb3 {[%emt 0:00:00]} 55. Kxe5 {[%emt 0:00:00]} a4 {[%emt 0:00:00]} 56. f4 {[%emt 0:00:00]} a3 {[%emt 0:00:00]} 57. f5 {[%emt 0:00:00]} a2 {[%emt 0:00:00]} 58. f6 {[%emt 0:00:00]} a1=Q+ {[%emt 0:00:00]} 59. Ke6 {[%emt 0:00:00]} Kc4 {[%emt 0:00:00]} 60. f7 {[%emt 0:00:00]} Qa3 {[%emt 0:00:00]} 0-1

[Event "FIDE World Senior-50 CC 2023"]
[Site "Terrasini"]
[Date "2023.11.04"]
[Round "10.13"]
[White "Nikolaidis, Konstantinos"]
[Black "Koganov, Mikhail"]
[Result "1-0"]
[ECO "E68"]
[WhiteElo "2096"]
[BlackElo "2170"]
[Annotator "ChessBase"]
[PlyCount "100"]
[EventDate "2023.10.22"]
[EventType "swiss"]
[EventCountry "ITA"]
[SourceTitle "playchess.com"]
[Source "ChessBase"]
[SourceQuality "1"]
[TimeControl "40/5400+30:1800+30"]

1. d4 {[%emt 0:00:19]} d6 {[%emt 0:00:48]} 2. Nf3 {[%emt 0:02:09]} Nf6 {[%emt 0:00:39]} 3. c4 {[%emt 0:00:45]} g6 {[%emt 0:00:32]} 4. Nc3 {[%emt 0:00:36]} Bg7 {[%emt 0:00:10]} 5. g3 {[%emt 0:02:36]} O-O {[%emt 0:02:48]} 6. Bg2 {[%emt 0:00:12]} Nbd7 {[%emt 0:00:55]} 7. O-O {[%emt 0:00:29]} e5 {[%emt 0:05:36]} 8. e4 {[%emt 0:00:47]} exd4 {[%emt 0:04:17]} 9. Nxd4 {[%emt 0:00:35]} Nc5 {[%emt 0:00:23]} 10. Re1 {[%emt 0:05:42]} Re8 {[%emt 0:02:05]} 11. Qc2 {[%emt 0:05:36]} Nfxe4 {[%emt 0:12:53]} 12. Nxe4 {[%emt 0:01:07]} Bxd4 {[%emt 0:25:36]} 13. Bg5 {[%emt 0:01:04]} Qd7 {[%emt 0:02:27]} 14. Nf6+ {[%emt 0:00:20]} Bxf6 {[%emt 0:00:06]} 15. Bxf6 {[%emt 0:00:32]} Rf8 {[%emt 0:05:06]} 16. Re7 {[%emt 0:06:12]} Qf5 {[%emt 0:00:56]} 17. Qxf5 {[%emt 0:02:23]} Bxf5 {[%emt 0:00:27]} 18. Rxc7 {[%emt 0:00:57]} Rac8 {[%emt 0:06:09]} 19. Rxc8 {[%emt 0:03:44]} Rxc8 {[%emt 0:00:07]} 20. Be7 {[%emt 0:04:15]} Be4 {[%emt 0:01:45]} 21. f3 {[%emt 0:15:18]} Bc6 {[%emt 0:06:04]} 22. Bxd6 {[%emt 0:01:56]} Nd3 {[%emt 0:00:46]} 23. b3 {[%emt 0:01:43]} Re8 {[%emt 0:00:24]} 24. Kf1 {[%emt 0:09:16]} Rd8 {[%emt 0:03:55]} 25. Be7 {[%emt 0:01:24]} Rd7 {[%emt 0:01:26]} 26. Rd1 {[%emt 0:04:48]} Rxe7 {[%emt 0:00:56]} 27. Rxd3 {[%emt 0:00:02]} f5 {[%emt 0:01:04]} 28. Rd2 {[%emt 0:03:43]} Kf7 {[%emt 0:03:30]} 29. f4 {[%emt 0:01:03]} Bxg2+ {[%emt 0:00:11]} 30. Kxg2 {[%emt 0:00:16]} Kf6 {[%emt 0:00:26]} 31. Kf2 {[%emt 0:01:26]} a6 {[%emt 0:00:10]} 32. h3 {[%emt 0:02:53]} h6 {[%emt 0:01:00]} 33. Rd6+ {[%emt 0:00:31]} Kg7 {[%emt 0:00:36]} 34. c5 {[%emt 0:01:36]} g5 {[%emt 0:03:26]} 35. Rb6 {[%emt 0:00:51]} gxf4 {[%emt 0:02:19]} 36. gxf4 {[%emt 0:00:11]} Rc7 {[%emt 0:00:34]} 37. b4 {[%emt 0:00:20]} Rd7 {[%emt 0:00:19]} 38. Ke3 {[%emt 0:00:58]} h5 {[%emt 0:00:19]} 39. h4 {[%emt 0:02:39]} Re7+ {[%emt 0:00:46]} 40. Kd3 {[%emt 0:01:51]} Kf7 {[%emt 0:01:05]} 41. a3 {[%emt 0:32:10]} Kg7 {[%emt 0:30:33]} 42. a4 {[%emt 0:02:11]} Kf7 {[%emt 0:00:18]} 43. b5 {[%emt 0:00:34]} axb5 {[%emt 0:00:09]} 44. axb5 {[%emt 0:00:03]} Re4 {[%emt 0:01:17]} 45. Rxb7+ {[%emt 0:01:08]} Ke6 {[%emt 0:01:07]} 46. c6 {[%emt 0:03:30]} Rxf4 {[%emt 0:00:51]} 47. c7 {[%emt 0:00:48]} Kd7 {[%emt 0:00:20]} 48. b6 {[%emt 0:00:11]} Rf3+ {[%emt 0:03:27]} 49. Ke2 {[%emt 0:01:11]} Rc3 {[%emt 0:01:48]} 50. Rb8 {[%emt 0:00:17]} Kd6 {[%emt 0:02:39]} 1-0